Cogmind - Beta 15 @@@ ROGUE MODE // 2025.07.24 @ 23:38:45 Player: Cracklepappy Result: Self-destructed Performance ------------- Evolutions (2) 1000 Regions Visited (10) 2000 Robots Destroyed (228) 1140 Value Destroyed (7011) 7011 Prototype IDs (49) 980 Alien Tech Used (0) 0 Bonus (1120) 1120 TOTAL SCORE: 13251 Bonus ------- High Alert Combat Kills 433 Entered Garrisons 400 Aligned with FarCom 300 Friendly Fire -13 Cogmind --------- Core Integrity 107/550 Matter 300/300 Energy 170/170 System Corruption 3% Temperature Cool (-100) Movement Rolling (190) Ox6 Location -8/Garrison Parts ------- > --- POWER (1) -------- Light Neutrino Core > --- PROPULSION (2) --- Compact Wheel > --- UTILITY (4) ------ Cryofiber Web Experimental Heat Sink Huge Storage Unit Experimental Targeting Computer > --- WEAPON (4) ------- Heavy Particle Cannon Heavy Particle Cannon Heavy Particle Cannon Plasma Cutter > --- INVENTORY (25) --- Heavy Deuterium Engine Advanced Heat Sink High-capacity Matter Pod (200) High-capacity Matter Pod (200) Machine Analyzer Makeshift Salvage Targeting Computer Weapon Cycler Graphene Brace Hacking Suite Authchip [R/NC] Improved System Guard System Purifier High-powered Tractor Beam Advanced Recalibrator Plasma Cannon Heavy Assault Rifle Heavy Assault Rifle Autogun Enhanced Autogun 8R-AWN's Boregun Missile Launcher Improved Datajack Great Maul Peak State ------------ > --- POWER ------------ Light Neutrino Core > --- PROPULSION ------- Wheel Armored Wheel > --- UTILITY ---------- Experimental Heat Sink Huge Storage Unit Machine Analyzer Experimental Targeting Computer > --- WEAPON ----------- Heavy Particle Cannon Heavy Particle Cannon Heavy Particle Cannon Plasma Cannon > --- INVENTORY -------- Heavy Deuterium Engine Wheel Compact Wheel Cryofiber Web Advanced Heat Sink High-capacity Matter Pod High-capacity Matter Pod Makeshift Salvage Targeting Computer Weapon Cycler Graphene Brace Hacking Suite Authchip [R/NC] Improved System Guard System Purifier High-powered Tractor Beam Advanced Recalibrator Heavy Assault Rifle Heavy Assault Rifle Autogun Enhanced Autogun 8R-AWN's Boregun Missile Launcher Improved Datajack Plasma Cutter Great Maul [Rating: 49] Favorites ----------- Power Heavy Ion Engine Engine Heavy Ion Engine Power Core Light Neutrino Core Propulsion Wheel Wheel Wheel Utility Huge Storage Unit Device Hardlight Generator Storage Huge Storage Unit Processor Experimental Targeting Computer Hackware Hacking Suite Weapon Improved Assault Rifle Energy Gun Heavy EM Pulse Gun Energy Cannon Heavy Particle Cannon Ballistic Gun Improved Assault Rifle Ballistic Cannon Light Cannon Launcher Rocket Launcher Special Weapon Plasma Cutter Impact Weapon Heavy Hammer Special Melee Weapon Improved Datajack Build | -11 -10 -10 -9 -9 -9 -8 -8 -8 -8 -8 ------- Run | Yrd Mat Min Mat Min Exi Min Mat Gar Mat Gar Slots Evolved 4 | . . . 2 . . . 2 . . . Power . | . . . . . . . . . . . Propulsion . | . . . . . . . . . . . Utility 2 | . . . . . . . 2 . . . Weapon 2 | . . . 2 . . . . . . . Parts Attached 94 | 10 13 1 20 . 17 . 20 10 2 1 Power 8 | 2 . . 3 . 2 . 1 . . . Engine 7 | 2 . . 3 . 2 . . . . . Core 1 | . . . . . . . 1 . . . Reactor . | . . . . . . . . . . . Propulsion 21 | 3 2 . 8 . 2 . 4 . 1 1 Treads . | . . . . . . . . . . . Leg . | . . . . . . . . . . . Wheel 21 | 3 2 . 8 . 2 . 4 . 1 1 Hover . | . . . . . . . . . . . Flight . | . . . . . . . . . . . Utility 21 | 2 4 . 3 . 4 . 6 1 1 . Device 13 | 1 1 . 3 . 4 . 3 1 . . Storage 4 | 1 3 . . . . . . . . . Processor 2 | . . . . . . . 1 . 1 . Hackware 2 | . . . . . . . 2 . . . Protection . | . . . . . . . . . . . Artifact . | . . . . . . . . . . . Weapon 44 | 3 7 1 6 . 9 . 9 9 . . Energy Gun 6 | 1 5 . . . . . . . . . Energy Cannon 9 | . 2 1 1 . 1 . . 4 . . Ballistic Gun 22 | 2 . . 4 . 5 . 9 2 . . Ballistic Cannon 1 | . . . 1 . . . . . . . Launcher 2 | . . . . . 1 . . 1 . . Special Weapon 1 | . . . . . . . . 1 . . Impact Weapon 2 | . . . . . 1 . . 1 . . Slashing Weapon . | . . . . . . . . . . . Piercing Weapon . | . . . . . . . . . . . Special Melee Weapon 1 | . . . . . 1 . . . . . Unidentified Prototypes 1 | . . . . . . . 1 . . . Parts Lost 25 | . 5 2 3 . 8 . 1 4 1 1 Power 3 | . 1 . 1 . 1 . . . . . Propulsion 8 | . 1 . 2 . 2 . . 1 1 1 Utility 3 | . . . . . 1 . 1 1 . . Weapon 11 | . 3 2 . . 4 . . 2 . . Highest Loss Streak 8 | . 2 2 1 . 8 . 1 2 1 1 To Critical Strikes 7 | . . . . . 6 . . . . 1 Average Backups 23 | 3 21 24 24 25 21 25 24 24 25 23 Power 1 | . . 1 1 1 1 1 1 1 1 1 Propulsion 2 | 1 4 4 2 3 2 1 1 1 1 . Utility 9 | . 7 9 10 7 7 12 12 11 13 13 Weapon 8 | . 8 10 9 12 9 8 7 8 7 7 Tool/Special . | . . . . . . . . . . . Unused Backups 67 | 2 10 . 22 4 7 . 9 . . 13 Power 7 | . 2 . 2 . 3 . . . . . Propulsion 5 | 2 2 . . . . . 1 . . . Utility 34 | . 2 . 11 3 3 . 4 . . 11 Weapon 21 | . 4 . 9 1 1 . 4 . . 2 Tool/Special . | . . . . . . . . . . . Average Slot Usage (%) 96 | . 99 99 99 100 81 100 99 99 100 97 Engine 10 | . 14 14 10 11 10 11 8 8 . . Wheel 21 | . 27 28 21 22 21 22 18 17 18 15 Device 13 | . 14 14 11 11 10 11 17 18 14 15 Storage 10 | . 14 14 11 11 11 11 9 9 9 9 Processor 3 | . . . . . . . 9 9 12 11 Energy Gun 4 | . 27 25 . . . . . . . . Energy Cannon 4 | . . 2 12 . . . . 6 36 34 Ballistic Gun 24 | . . . 30 44 18 44 35 25 . . Impact Weapon 1 | . . . . . 4 . . 3 . . Peak Build Rating 49 | 7 13 12 26 26 38 34 47 48 49 49 Average Rating 28 | 5 12 11 22 26 23 33 40 43 48 47 On Entrance 26 | . 7 12 11 26 26 34 34 40 48 48 Naked Turns . | . . . . . . . . . . . Heaviest Build 117 | 14 92 90 105 105 108 108 109 117 114 114 Greatest Support 28 | 26 20 20 20 20 22 22 22 20 22 28 Greatest Overweight (x) 9 | . 9 4 9 5 8 4 5 5 9 7 Average Overweight (x) 4 | . 3 4 4 5 4 4 4 5 5 4 Largest Inventory Capacity 25 | 8 25 25 25 25 25 25 25 25 25 25 Average Capacity 24 | 7 23 25 25 25 25 25 25 25 25 25 Most Carried 25 | 8 25 25 25 25 25 25 25 25 25 24 Average Carried 23 | 3 21 24 24 24 21 24 24 24 24 23 Final Capacity 25 | 8 25 25 25 25 25 25 25 25 25 25 Final Carried 25 | 8 25 24 25 25 25 25 25 25 25 23 Class Distribution -------------------- 29% | Tank 28% | Scavenger-Gunner 27% | Mutant 13% | Gunner Dominant Class ---------------- Mutant | -10/Materials Mutant | -10/Mines Tank | -9/Materials Tank | -9/Mines Mutant | -9/Exiles Tank | -8/Mines Scavenger-Gunner | -8/Materials Scavenger-Gunner | -8/Garrison Scavenger-Gunner | -8/Materials Scavenger-Gunner | -8/Garrison Resources | -11 -10 -10 -9 -9 -9 -8 -8 -8 -8 -8 ----------- Run | Yrd Mat Min Mat Min Exi Min Mat Gar Mat Gar Matter Collected 5977 | 310 160 20 1262 135 1150 295 1661 876 71 37 Remotely 144 | 114 30 . . . . . . . . . Salvage Created 9129 | 156 1008 146 1981 167 553 562 2342 1182 772 260 Parts 564 | 17 61 7 131 12 58 32 138 57 41 10 Haulers Intercepted 14 | . 2 . 6 . . . 3 . 3 . Recyclers Shooed 3 | . . . 1 . . 1 1 . . . Parts Field Recycled . | . . . . . . . . . . . Retrieved Matter . | . . . . . . . . . . . Parts Self-Destructed . | . . . . . . . . . . . Prevented . | . . . . . . . . . . . Kills | -11 -10 -10 -9 -9 -9 -8 -8 -8 -8 -8 ------- Run | Yrd Mat Min Mat Min Exi Min Mat Gar Mat Gar Combat Hostiles Destroyed 150 | . 21 5 32 6 5 14 31 20 11 5 Guns 108 | . 16 4 19 6 2 14 31 16 . . Cannons 32 | . . 1 13 . . . . 2 11 5 AOE 9 | . 4 . . . 3 . . 2 . . Classes Destroyed 18 | 3 6 . 2 . 3 1 2 1 . . Worker 14 | 1 . . 6 1 . 2 4 . . . Builder 6 | . 1 . 2 . . . 2 . 1 . Tunneler 8 | 3 1 . 1 . . . 2 . 1 . Hauler 14 | . 2 . 6 . . . 3 . 3 . Recycler 7 | 1 . . 1 . . 1 2 . 2 . Mechanic 2 | . . . 2 . . . . . . . Operator 7 | . 1 . 1 . . . 3 . 2 . Turret 1 | . . . . . 1 . . . . . Watcher 13 | . 3 . 5 . . . 5 . . . Swarmer 38 | . 6 3 10 4 . 8 . 2 5 . Grunt 69 | . 15 2 12 2 . 5 19 7 4 3 Brawler 2 | . . . . . . 1 1 . . . Sentry 32 | . . . 10 . . . 9 9 2 2 Hunter 2 | . . . . . . . 1 1 . . Programmer 1 | . . . . . . . . 1 . . Heavy 1 | . . . . . . . 1 . . . Zionite 8 | . . . . . 8 . . . . . Assembled 4 | . . . . . 4 . . . . . Best Kill Streak 9 | 3 3 2 9 6 6 7 3 4 6 3 Combat Bots Only 7 | . 3 2 7 6 3 4 3 4 4 3 Max Kills in Single Turn 3 | 1 2 1 2 2 3 2 2 2 2 1 Gunslinging 1 | . . . . 1 . 1 . 1 . . Exploded 3 | . 2 . . . 3 . . 2 . . Melee . | . . . . . . . . . . . Uniques/NPCs Destroyed 4 | . . . . . 4 . . . . . 8R-AWN (-9/Exiles) EX-HEX (-9/Exiles) EX-DEC (-9/Exiles) EX-BIN (-9/Exiles) Combat | -11 -10 -10 -9 -9 -9 -8 -8 -8 -8 -8 -------- Run | Yrd Mat Min Mat Min Exi Min Mat Gar Mat Gar Hostile Shots Fired 528 | . 71 15 85 22 72 30 101 72 38 22 Missed 137 | . 20 5 17 6 11 12 33 20 10 3 Hits 391 | . 51 10 68 16 61 18 68 52 28 19 Projectile 391 | . 51 10 68 16 61 18 68 52 28 19 Critical Strikes 48 | . . . 1 . 35 1 5 3 2 1 Damage Taken 4781 | . 587 114 707 99 844 162 976 639 352 301 Core 958 | . 178 38 108 5 158 28 183 87 112 61 Absorbed by Shields 1084 | . . . 152 64 250 72 352 194 . . Regen/Repaired (Parts) 275 | . . . 152 . . . 123 . . . Core Remaining (%) 46 | 100 . 13 . . . 25 . . . . Volleys Fired 489 | 10 60 11 75 11 61 24 105 104 19 9 Largest 4 | 2 2 2 4 4 4 4 4 4 4 4 Hottest 305 | 70 120 120 240 92 120 92 99 305 305 305 Shots Fired 1559 | 20 117 20 301 45 203 95 420 229 76 33 Gun 1235 | 20 115 18 173 45 192 95 420 157 . . Cannon 270 | . 2 2 128 . 9 . . 20 76 33 Launcher 3 | . . . . . 2 . . 1 . . Special 51 | . . . . . . . . 51 . . Kinetic 1092 | 10 . . 173 45 192 95 420 157 . . Thermal 331 | 10 2 2 128 . 9 . . 71 76 33 Explosive 3 | . . . . . 2 . . 1 . . Electromagnetic 133 | . 115 18 . . . . . . . . Robot Hit Streak 25 | 4 9 2 17 5 13 11 23 25 15 18 Robot Miss Streak 7 | 1 5 4 5 2 4 3 7 4 2 1 Penetration Max 1 | . . . . . . . 1 1 . . Secondary Targets 15 | . 1 . 2 2 . 2 4 4 . . Max Gunslinging Chain 1 | . 1 . 1 1 . 1 1 1 . . Shots Hit Robots 919 | 12 67 8 154 25 131 56 268 138 40 20 Core Hits 383 | 7 31 6 71 9 48 26 103 48 27 7 Critical Kills 5 | . . . . . . 1 3 1 . . Critical Parts Destroyed 7 | . . . . 1 . . . 6 . . Critical Strikes 15 | 2 1 . . 1 . 1 3 7 . . Burn 2 | 2 . . . . . . . . . . Destroy 12 | . . . . 1 . 1 3 7 . . Corrupt 1 | . 1 . . . . . . . . . Melee Attacks 26 | . . . . . 6 . . 20 . . Impact 21 | . . . . . 1 . . 20 . . Slashing . | . . . . . . . . . . . Piercing . | . . . . . . . . . . . Sneak Attacks 5 | . . . . . 5 . . . . . Combat Hostiles . | . . . . . . . . . . . Follow-up Attacks . | . . . . . . . . . . . Damage Inflicted 15949 | 168 1320 147 2669 341 2379 896 4173 2045 1289 522 Guns 11465 | 168 1099 84 1465 341 1878 896 4161 1373 . . Cannons 3314 | . 17 18 1204 . 322 . . 53 1178 522 Explosions 661 | . 204 45 . . 179 . . 122 111 . Melee . | . . . . . . . . . . . Ramming 12 | . . . . . . . 12 . . . Kinetic 10156 | 42 . . 1465 341 1878 896 4161 1373 . . Thermal 4186 | 126 221 63 1204 . 322 . . 550 1178 522 Explosive 301 | . . . . . 179 . . 122 . . Electromagnetic 1294 | . 1099 84 . . . . . . 111 . Impact . | . . . . . . . . . . . Slashing . | . . . . . . . . . . . Piercing . | . . . . . . . . . . . Highest Corruption 3 | . . . 1 1 1 1 2 3 3 3 Average Corruption 1 | . . . 1 1 1 1 2 2 3 3 Corruption Purged . | . . . . . . . . . . . Corruption Blocked . | . . . . . . . . . . . Effects 97 | . . . 8 10 18 6 20 21 11 3 Message Errors 23 | . . . 2 4 3 1 4 4 3 2 Matter Fused 22 | . . . 3 . 4 1 1 8 4 1 Heat Flow Errors 12 | . . . 1 1 2 2 2 4 . . Energy Discharges 15 | . . . 1 3 1 . 8 2 . . Parts Rejected 1 | . . . . . . . . . 1 . Parts Fused 1 | . . . . . 1 . . . . . Data Loss (minor) 12 | . . . . . 3 . 3 3 3 . Data Loss (major) 3 | . . . . 1 1 1 . . . . Misfires 3 | . . . 1 1 . . 1 . . . Alerts 2 | . . . . . 2 . . . . . Weapon Failures 3 | . . . . . 1 1 1 . . . Overload Shots . | . . . . . . . . . . . Overflow Damage 120 | . 13 2 . . 32 . . 27 37 9 Projectiles 68 | . . . . . 22 . . . 37 9 Explosions 52 | . 13 2 . . 10 . . 27 . . Melee . | . . . . . . . . . . . Knockbacks . | . . . . . . . . . . . Impact . | . . . . . . . . . . . Kinetic . | . . . . . . . . . . . Secondary . | . . . . . . . . . . . Self-Inflicted Damage 44 | . 38 . . . . . 6 . . . Shots 1 | . 1 . . . . . . . . . Rammed 1 | . . . . . . . 1 . . . Targets Rammed 1 | . . . . . . . 1 . . . Kicked . | . . . . . . . . . . . Crushed . | . . . . . . . . . . . Highest Temperature 712 | 80 147 27 712 109 223 262 276 237 317 227 Average Temperature 82 | 31 34 16 106 41 93 62 74 83 120 84 Received Heat Transfer 1483 | . 183 45 235 31 . 81 346 274 144 144 Effects 16 | . . . 12 . 1 . 3 . . . Shutdowns 1 | . . . 1 . . . . . . . Energy Bleed 2 | . . . 2 . . . . . . . Interference 5 | . . . 1 . 1 . 3 . . . Matter Decay 3 | . . . 3 . . . . . . . Damage (minor) 2 | . . . 2 . . . . . . . Damage (major) 2 | . . . 2 . . . . . . . Damage (core) 1 | . . . 1 . . . . . . . Siege Activations . | . . . . . . . . . . . Martial Activations . | . . . . . . . . . . . Shielding Activations . | . . . . . . . . . . . Robots Disrupted . | . . . . . . . . . . . Combat Hostiles . | . . . . . . . . . . . Robots Corrupted 1 | . 1 . . . . . . . . . Combat Hostiles 1 | . 1 . . . . . . . . . Parts Fried 3 | . 3 . . . . . . . . . Impact Corruptions . | . . . . . . . . . . . Robots Melted 2 | . . . . . . . . 2 . . Combat Hostiles . | . . . . . . . . . . . Parts Melted 20 | 1 . . 6 . . . . 2 6 5 Heat Transferred 8832 | 518 337 87 2553 . 720 . . 1802 1947 868 Parts Sabotaged . | . . . . . . . . . . . Parts Stolen . | . . . . . . . . . . . Parts Stripped . | . . . . . . . . . . . Power Chain Reactions 5 | . 4 1 . . . . . . . . Alert | -11 -10 -10 -9 -9 -9 -8 -8 -8 -8 -8 ------- Run | Yrd Mat Min Mat Min Exi Min Mat Gar Mat Gar Maximum Alert Level 4 | . 1 . 1 1 . . 1 4 2 2 Low Security (%) 67 | 100 91 100 67 87 . 100 77 . . . Level 1 16 | . 8 . 32 12 . . 22 12 . 12 Level 2 9 | . . . . . . . . 31 100 87 Level 3 5 | . . . . . . . . 47 . . Level 4 1 | . . . . . . . . 8 . . Level 5 . | . . . . . . . . . . . High Security . | . . . . . . . . . . . Max Security . | . . . . . . . . . . . Peak Influence 1226 | 10 248 106 396 267 . 110 371 1226 632 595 Initial 597 | . . 87 21 147 . . 25 238 597 386 Average 210 | 1 84 71 146 66 . 46 141 741 520 489 Influence Increases 5356 | 25 827 139 1085 145 . 365 1096 1068 387 219 Destroy 0b10 Robot/C 2900 | . 420 100 640 120 . 280 620 400 220 100 Destroy 0b10 Robot/NC 365 | 25 40 . 120 5 . 15 105 10 45 . Destroy Leader 664 | . 110 20 212 20 . 40 196 20 46 . Allied During Kill 1 | . . . . . . . . 1 . . Successful Hack 178 | . 31 . 34 . . . 74 14 11 14 Select Force Hacks 60 | . 60 . . . . . . . . . Disable Machine 165 | . 15 . 45 . . 15 15 45 30 . Anti-Garrison Action 550 | . . . . . . . . 450 . 100 Destroy Structure 143 | . 16 4 4 . . . 11 83 20 5 Partial Spotted 15 | . 15 . . . . . . . . . Lose Combat Pursuer 315 | . 120 15 30 . . 15 75 45 15 . Influence Decreases 4761 | 25 602 308 763 523 . 299 795 209 1019 218 Entered New Map 1411 | . . 138 35 231 . . 41 129 629 208 Time Decay 2693 | 25 552 150 551 292 . 299 594 . 230 . Lost Part 170 | . 50 20 30 . . . 10 40 10 10 Lost Ally 40 | . . . . . . . . 40 . . Purge Threat 447 | . . . 147 . . . 150 . 150 . Squads Dispatched 18 | . 6 . 4 . . . 5 . 3 . Investigation 11 | . 5 . 1 . . . 4 . 1 . Extermination . | . . . . . . . . . . . Reinforcement 6 | . 1 . 3 . . . 1 . 1 . Assault 1 | . . . . . . . . . 1 . Garrison . | . . . . . . . . . . . Intercept . | . . . . . . . . . . . Searches Triggered . | . . . . . . . . . . . Construction Impeded 1 | . . . . . . . . . 1 . Haulers Reinforced . | . . . . . . . . . . . Active Scanning Responses . | . . . . . . . . . . . Cargo Convoy Interrupts . | . . . . . . . . . . . Stealth | -11 -10 -10 -9 -9 -9 -8 -8 -8 -8 -8 --------- Run | Yrd Mat Min Mat Min Exi Min Mat Gar Mat Gar Distress Signals 9 | . 4 . 3 . . . . . 2 . Communications Jammed . | . . . . . . . . . . . Distress Signals . | . . . . . . . . . . . Times Spotted 202 | . 31 6 42 6 10 14 47 24 17 5 Peak Tracking Total 12 | . 5 3 6 4 12 4 4 5 4 3 Tactical Retreats 20 | . 7 1 2 . 2 1 3 3 1 . Traps | -11 -10 -10 -9 -9 -9 -8 -8 -8 -8 -8 ------- Run | Yrd Mat Min Mat Min Exi Min Mat Gar Mat Gar Traps Triggered 11 | . 1 . 1 . . . 2 5 . 2 Indirectly . | . . . . . . . . . . . Trap Hack Attempts 21 | . . . . . . . 21 . . . Triggered . | . . . . . . . . . . . Disarmed . | . . . . . . . . . . . Reprogrammed 2 | . . . . . . . 2 . . . Reused . | . . . . . . . . . . . Traps Extracted . | . . . . . . . . . . . Installed . | . . . . . . . . . . . Triggered . | . . . . . . . . . . . Objects Rigged 1 | . . . . . 1 . . . . . Exploded 1 | . . . . . . 1 . . . . Machines | -11 -10 -10 -9 -9 -9 -8 -8 -8 -8 -8 ---------- Run | Yrd Mat Min Mat Min Exi Min Mat Gar Mat Gar Machines Disabled 25 | . 1 . 3 . 7 1 1 9 2 1 Max in Single Turn 1 | . 1 . 1 . 1 1 1 1 1 1 Garrison Relay 6 | . . . . . . . . 5 . 1 Machines Repaired . | . . . . . . . . . . . Machines Dismantled . | . . . . . . . . . . . Machines Sabotaged . | . . . . . . . . . . . Overloaded Fab Kills . | . . . . . . . . . . . Hacking | -11 -10 -10 -9 -9 -9 -8 -8 -8 -8 -8 --------- Run | Yrd Mat Min Mat Min Exi Min Mat Gar Mat Gar Machines Accessed 43 | . 9 . 8 1 2 . 15 2 4 2 Terminals 29 | . 7 . 5 . . . 10 2 3 2 Fabricators . | . . . . . . . . . . . Repair Stations 3 | . . . 1 . . . 2 . . . Recycling Units 2 | . 2 . . . . . . . . . Scanalyzers 4 | . . . 2 . . . 2 . . . Garrison Access 2 | . . . . . . . 1 . 1 . Total Hacks 143 | . 27 . 31 1 2 . 59 6 14 3 Successful 74 | . 10 . 19 1 2 . 37 1 3 1 Failed 69 | . 17 . 12 . . . 22 5 11 2 Catastrophic 18 | . 2 . 2 . . . 8 2 3 1 Database Lockouts . | . . . . . . . . . . . Manual 74 | . 23 . 10 . 1 . 29 . 11 . Terminals 95 | . 25 . 18 . . . 34 6 9 3 Fabricators . | . . . . . . . . . . . Repair Stations 11 | . . . 6 . . . 5 . . . Recycling Units 2 | . 2 . . . . . . . . . Scanalyzers 23 | . . . 7 . . . 16 . . . Garrison Access 9 | . . . . . . . 4 . 5 . Terminal Hacks 24 | . 2 . 6 1 2 . 9 1 2 1 Record 1 | . . . . . 1 . . . . . Part Schematic 3 | . . . 1 . . . 2 . . . Robot Schematic 1 | . 1 . . . . . . . . . Prototype ID Bank 6 | . 1 . 3 . . . 2 . . . Open Door 1 | . . . . 1 . . . . . . Emergency Access Points 1 | . . . . . . . . 1 . . Terminal Index 1 | . . . . . . . 1 . . . Unreport Threat 3 | . . . 1 . . . 1 . 1 . Locate Traps 2 | . . . 1 . . . 1 . . . Hauler Manifests 1 | . . . . . . . 1 . . . Registered Components 2 | . . . . . . . 1 . 1 . Garrison Registry 1 | . . . . . . . . . . 1 Proto ID Catalog 1 | . . . . . 1 . . . . . Fabricator Hacks . | . . . . . . . . . . . Repair Station Hacks 8 | . . . 4 . . . 4 . . . Scan Component 4 | . . . 2 . . . 2 . . . Repair 4 | . . . 2 . . . 2 . . . Recycling Unit Hacks . | . . . . . . . . . . . Scanalyzer 20 | . . . 6 . . . 14 . . . Insert Component 9 | . . . 3 . . . 6 . . . Analyze 11 | . . . 3 . . . 8 . . . Garrison Access Hacks 2 | . . . . . . . 1 . 1 . Unlock Access 2 | . . . . . . . 1 . 1 . Unauthorized Hacks 20 | . 8 . 3 . . . 9 . . . Terminals 16 | . 6 . 3 . . . 7 . . . Operators 2 | . 1 . . . . . 1 . . . Skim 14 | . 5 . 3 . . . 6 . . . Fabricators . | . . . . . . . . . . . Repair Stations 1 | . . . . . . . 1 . . . Patch 1 | . . . . . . . 1 . . . Recycling Units 2 | . 2 . . . . . . . . . Tunnel 2 | . 2 . . . . . . . . . Scanalyzers . | . . . . . . . . . . . Garrison Access 1 | . . . . . . . 1 . . . Reprogram 1 | . . . . . . . 1 . . . Data Cores Recovered 2 | . . . . . . . 1 . 1 . Used 1 | . . . . . . . . . 1 . Hacking Detections 37 | . 7 . 8 . . . 14 2 4 2 Full Trace Events 8 | . 1 . 1 . . . 2 2 1 1 Feedback Events 3 | . . . 1 . . . 1 1 . . Corruption 2 | . . . 1 . . . . 1 . . Hackware Fried 1 | . . . . . . . 1 . . . Feedback Blocked . | . . . . . . . . . . . Robot Schematics Acquired 1 | . 1 . . . . . . . . . Robots Built . | . . . . . . . . . . . Authchips . | . . . . . . . . . . . Time . | . . . . . . . . . . . Total Robot Build Rating . | . . . . . . . . . . . Part Schematics Acquired 12 | . . . 4 . . . 8 . . . Parts Built . | . . . . . . . . . . . Authchips . | . . . . . . . . . . . Time . | . . . . . . . . . . . Total Part Build Rating . | . . . . . . . . . . . Parts Repaired 4 | . . . 2 . . . 2 . . . Time 204 | . . . 102 . . . 102 . . . Parts Recycled . | . . . . . . . . . . . Recycled Matter . | . . . . . . . . . . . Retrieved Matter . | . . . . . . . . . . . Retrieved Components . | . . . . . . . . . . . Parts Scanalyzed 9 | . . . 3 . . . 6 . . . Part Schematics Acquired 9 | . . . 3 . . . 6 . . . Parts Damaged 1 | . . . . . . . 1 . . . Bothacking | -11 -10 -10 -9 -9 -9 -8 -8 -8 -8 -8 ------------ Run | Yrd Mat Min Mat Min Exi Min Mat Gar Mat Gar Used RIF Installer . | . . . . . . . . . . . Robots Hacked 5 | . . . . . 5 . . . . . Non-combat 3 | . . . . . 3 . . . . . Combat 2 | . . . . . 2 . . . . . Robot Hacks Applied 5 | . . . . . 5 . . . . . parse_system 5 | . . . . . 5 . . . . . Relay Couplers Released 25 | . . . . . . . . 22 . 3 Machine Destruction 25 | . . . . . . . . 22 . 3 Fabnet Peak Effective % . | . . . . . . . . . . . Robots Rewired 2 | . . . . . . . . . . 2 Allies Hacked . | . . . . . . . . . . . Hacks Repelled . | . . . . . . . . . . . Allies | -11 -10 -10 -9 -9 -9 -8 -8 -8 -8 -8 -------- Run | Yrd Mat Min Mat Min Exi Min Mat Gar Mat Gar Total Allies 4 | . . . . . . . 2 . . 2 Largest Group 2 | . . . . . . . 2 2 . 2 Highest-Rated Group 45 | . . . . . . . 32 32 . 45 Highest-Rated Ally 25 | . . . . . . . 16 16 . 25 Initial Warlord ECA Mod 22 | . . . . . . . . . 11 11 Total Orders . | . . . . . . . . . . . Ally Attacks 9 | . . . . . . . . 9 . . Total Damage 141 | . . . . . . . . 141 . . Kills . | . . . . . . . . . . . Allies Corrupted . | . . . . . . . . . . . Allies Melted . | . . . . . . . . . . . Intel | -11 -10 -10 -9 -9 -9 -8 -8 -8 -8 -8 ------- Run | Yrd Mat Min Mat Min Exi Min Mat Gar Mat Gar Active Infowar (turns) 215 | . . . . . . . . . 172 43 Machine Analysis 215 | . . . . . . . . . 172 43 Robot Analysis Total . | . . . . . . . . . . . Derelict Logs Recovered 3 | . . 1 . 2 . . . . . . Drone Launches . | . . . . . . . . . . . Drone Recoveries . | . . . . . . . . . . . Exploration | -11 -10 -10 -9 -9 -9 -8 -8 -8 -8 -8 ------------- Run | Yrd Mat Min Mat Min Exi Min Mat Gar Mat Gar Turns Passed 14683 | 125 2011 318 2383 1252 2809 734 2924 1460 480 187 Spaces Moved 7673 | 84 1095 198 1147 507 1746 446 1496 658 238 58 Core 3 | 3 . . . . . . . . . . Treads . | . . . . . . . . . . . Legs . | . . . . . . . . . . . Wheels 7670 | 81 1095 198 1147 507 1746 446 1496 658 238 58 Hover . | . . . . . . . . . . . Flight . | . . . . . . . . . . . Fastest Speed 50 | 50 80 140 140 155 140 145 145 155 155 155 Average Speed 145 | 87 132 140 151 155 143 145 148 155 157 166 Slowest Speed 225 | 90 215 140 215 155 210 145 155 155 225 205 Overloaded Moves . | . . . . . . . . . . . Propulsion Burnouts . | . . . . . . . . . . . Robots Hopped . | . . . . . . . . . . . Potential Cave-ins . | . . . . . . . . . . . Cave-ins Triggered . | . . . . . . . . . . . Exploration Rate (%) 65 | 4 98 54 87 82 88 84 96 86 31 10 Regions Visited 10 Branch Regions 4 Pre-discovered Areas 4 | . 2 . . . 1 . 1 . . . Known Exits Taken 6 | . 1 1 1 . . 1 1 . 1 . Unknown Exits Taken 3 | 1 . . . 1 1 . . . . . Scrap Searched 2 | . . . . 1 . 1 . . . . Spaces Dug 8 | . . . . . . . . 8 . . Terrain Destroyed 59 | . 13 4 . . 12 . 1 10 19 . Melee 4 | . . . . . . . . 4 . . Projectile 22 | . . . . . . . 1 2 19 . AOE 33 | . 13 4 . . 12 . . 4 . . Terrain Rammed . | . . . . . . . . . . . Walls Destroyed . | . . . . . . . . . . . Machines Disabled . | . . . . . . . . . . . Actions | -11 -10 -10 -9 -9 -9 -8 -8 -8 -8 -8 --------- Run | Yrd Mat Min Mat Min Exi Min Mat Gar Mat Gar Total 10176 | 119 1554 219 1625 951 1933 474 2006 878 295 122 Wait 1464 | . 329 8 288 426 16 3 310 39 29 16 Move 7663 | 83 1094 197 1146 506 1745 445 1495 657 237 58 Hop . | . . . . . . . . . . . Pick Up 170 | 12 37 1 44 4 41 1 22 5 3 . Fast Attach 15 | 6 . . 2 . 4 . 2 . 1 . Attach 40 | 1 5 2 5 . 14 . 8 4 . 1 Detach 2 | . . . . . 2 . . . . . Swap 91 | 3 11 . 22 . 6 . 21 23 3 2 Drop 133 | 4 18 . 43 4 37 1 21 2 3 . Fire 489 | 10 60 11 75 11 61 24 105 104 19 9 Melee 26 | . . . . . 6 . . 20 . . Ram 1 | . . . . . . . 1 . . . Kick . | . . . . . . . . . . . Crush . | . . . . . . . . . . . Escape Stasis 40 | . . . . . . . . 24 . 16 Rewire 18 | . . . . . . . . . . 18 Trap 22 | . . . . . 1 . 21 . . . Miscellaneous 2 | . . . . . . . . . . 2 Route ------- -11/Scrapyard -10/Materials (discovered 6 exits: *Mat x3 / *Min x2 / *Sub) -10/Mines (discovered 2 exits: *Mat x2) -9/Materials (discovered 4 exits: *Mat x2 / *Min x2) -9/Mines (discovered 3 exits: *Mat x2 / *Exi) -9/Exiles (discovered 2 exits: [*Min x2]) -8/Mines (discovered 2 exits: *Mat x2) -8/Materials (discovered 4 exits: *Fac x3 / Gar) -8/Garrison (discovered 3 exits: *Mat x3) -8/Materials -8/Garrison (discovered 4 exits: [Mat x4]) History --------- Turn | Location | Event 7 | -11/Scrapyard | Discovered new exit (range 16) 126 | -11/Scrapyard | Entered Materials 206 | -10/Materials | Discovered new exit (range 10) 308 | -10/Materials | Build established: Mutant 372 | -10/Materials | Discovered new exit (range 16) 492 | -10/Materials | Discovered new exit (range 9) 686 | -10/Materials | Discovered new exit (range 3) 964 | -10/Materials | Loaded intel: 9 trap records 997 | -10/Materials | Identified exit to Subcaves 1036 | -10/Materials | Learned location of 2 exits from Subcaves 1038 | -10/Materials | Loaded intel: 8 terminal locations 1039 | -10/Materials | Learned location of 1 exit from Recycling 1040 | -10/Materials | Learned location of 2 exits from Subcaves 1044 | -10/Materials | Learned location of 1 exit from Recycling 1055 | -10/Materials | Identified exit to Mines 1055 | -10/Materials | Learned location of 2 exits from Materials 1884 | -10/Materials | Core integrity fell below 50% 2137 | -10/Materials | Entered Mines 2138 | -10/Mines | Identified exit to Materials 2365 | -10/Mines | Learned Materials machine intel 2379 | -10/Mines | Found a hidden stash of uninstalled traps 2418 | -10/Mines | Core integrity fell below 20% 2455 | -10/Mines | Entered Materials 2455 | -9/Materials | Evolved 2 slots: Weapon x2 2456 | -9/Materials | Identified exit to Materials 2456 | -9/Materials | Identified exit to Mines 2457 | -9/Materials | Loaded intel: 58 machine locations 2457 | -9/Materials | Discovered exit to Mines (range 15) 2798 | -9/Materials | Build established: Gunner 3421 | -9/Materials | Build established: Tank 3423 | -9/Materials | Discovered exit to Materials (range 15) 3979 | -9/Materials | Destroyed 7 combat bots 4574 | -9/Materials | Repaired Imp. Assault Rifle 4627 | -9/Materials | Repaired Imp. Assault Rifle 4838 | -9/Materials | Entered Mines 4942 | -9/Mines | Met a Derelict who couldn't figure out how to use a Trap Extractor 5165 | -9/Mines | Assembled infested the area 5666 | -9/Mines | Learned 2 Materials zone layouts 5742 | -9/Mines | Discovered exit to Materials (range 5) 5996 | -9/Mines | Discovered new exit (range 5) 6034 | -9/Mines | Learned Materials stockpile data 6034 | -9/Mines | Discovered exit to Materials (range 11) 6090 | -9/Mines | Entered Exiles 6134 | -9/Exiles | Met 8R-AWN 6156 | -9/Exiles | Met EX-HEX 6224 | -9/Exiles | Met EX-DEC 6264 | -9/Exiles | Learned location of Zion (-6) 6303 | -9/Exiles | Discovered new exit (range 14) 6397 | -9/Exiles | Build established: Mutant 6631 | -9/Exiles | Discovered new exit (range 15) 6885 | -9/Exiles | Met EX-BIN 6910 | -9/Exiles | Aligned with FarCom system 6912 | -9/Exiles | Given EX-Vault access code 6947 | -9/Exiles | Opened EX-Vault 6958 | -9/Exiles | Found Firepult 6962 | -9/Exiles | Found Gui. Plasma Cannon 6965 | -9/Exiles | Found PSU Rigger 6992 | -9/Exiles | Warned to stay clear of 0b10 Research branches 7724 | -9/Exiles | Attacked by the Exiles 7851 | -9/Exiles | Core integrity fell below 50% 7904 | -9/Exiles | Destroyed 8R-AWN 7913 | -9/Exiles | Found 8R-AWN's Boregun 7916 | -9/Exiles | Found Exp. Targeting Computer 7923 | -9/Exiles | Lost 8 parts (1p2n1u4w) 8084 | -9/Exiles | Destroyed EX-HEX 8132 | -9/Exiles | Destroyed EX-DEC 8139 | -9/Exiles | Destroyed EX-BIN 8181 | -9/Exiles | Found System Purifier 8187 | -9/Exiles | Found Deploy-a-Sentry 8284 | -9/Exiles | Build established: Gunner 8690 | -9/Exiles | Build established: Tank 8899 | -9/Exiles | Entered Mines 9092 | -8/Mines | Discovered exit to Materials (range 6) 9571 | -8/Mines | Discovered exit to Materials (range 4) 9633 | -8/Mines | Entered Materials 9633 | -8/Materials | Evolved 2 slots: Utility x2 9974 | -8/Materials | Build established: Gunner 10832 | -8/Materials | Build established: Scavenger-Gunner 10849 | -8/Materials | Discovered new exit (range 8) 10981 | -8/Materials | Learned Storage security intel 11048 | -8/Materials | Learned 2 Lower Caves zone layouts 11151 | -8/Materials | Learned location of Extension (-6) 11187 | -8/Materials | Identified exit to Factory 11214 | -8/Materials | Learned location of 1 exit from Recycling 11251 | -8/Materials | Learned 2 Storage zone layouts 11298 | -8/Materials | Learned Storage stockpile data 11353 | -8/Materials | Learned location of 1 exit from Recycling 11657 | -8/Materials | Repaired Hvy. Deuterium Engine 11691 | -8/Materials | Repaired Hvy. Assault Rifle 11916 | -8/Materials | Discovered exit to Factory (range 16) 12414 | -8/Materials | Identified exit to Garrison 12414 | -8/Materials | Hacking Suite fried by hacking feedback 12557 | -8/Materials | Entered Garrison 12557 | -8/Garrison | Accompanied by 2 allies 12609 | -8/Garrison | Triggered checkpoint 12710 | -8/Garrison | Garrison Relay disabled 12736 | -8/Garrison | Garrison Relay disabled 12859 | -8/Garrison | Triggered checkpoint 13001 | -8/Garrison | Garrison Relay disabled 13060 | -8/Garrison | Discovered new exit (range 15) 13184 | -8/Garrison | Triggered checkpoint 13376 | -8/Garrison | Triggered checkpoint 13605 | -8/Garrison | Garrison Relay disabled 13693 | -8/Garrison | Discovered new exit (range 10) 13825 | -8/Garrison | Triggered checkpoint 13880 | -8/Garrison | Discovered new exit (range 15) 13951 | -8/Garrison | Triggered checkpoint 13973 | -8/Garrison | Garrison Relay disabled 14017 | -8/Garrison | Entered Materials 14262 | -8/Materials | Core integrity fell below 50% 14417 | -8/Materials | First assault squad dispatched 14477 | -8/Materials | Identified exit to Garrison 14497 | -8/Materials | Entered Garrison 14520 | -8/Garrison | Discovered new exit (range 67) 14520 | -8/Garrison | Discovered new exit (range 86) 14520 | -8/Garrison | Discovered new exit (range 70) 14520 | -8/Garrison | Discovered new exit (range 64) 14529 | -8/Garrison | Triggered checkpoint 14598 | -8/Garrison | Garrison Relay disabled 14618 | -8/Garrison | Core integrity fell below 20% 14684 | -8/Garrison | Self-destructed Last Messages --------------- 14598_ Relay Coupler [Hunter] tumbles out of relay unit. 14600_ XPASVL8TUTR|TACRSP YHF 14601_ Y-45 Defender springs to life. 14620_ Y-45 Defender destroyed. 14620_ Critical hit (Destroy). 14620_ Arm. Wheel destroyed. 14624_ Imp. Ion Engine melted. 14624_ Heat Sink melted. 14624_ Y-45 Defender destroyed. 14641_ Connecting with Door Terminal... 14641_ ALERT: Suspicious activity at Terminal G001. Transmitting hostile system tracking data. 14643_ Dismantling Sealed Heavy Doors with Plasma Cutter. Sealed Heavy Doors activated. 14653_ Attempting to rewire XF-7NL(l). 14666_ XF-7NL(l) rewired. 14667_ Attempting to rewire 3B-FHT(b). 14670_ 3B-FHT(b) rewired. 14677_ Garrison Relay collapses. 14678_ Acquired 10 matter. Map ----- +----------------------------------------------------+ | ?????????????????????????????????????? | | ?????????????????##################### | | ?????????????????#"T"## | | ?????????????????#" | | ?????????????????###### ####+######## | | ??????????????????????# #??# ######## | | ??????????????????????# #??# ### | | ??????????????????????# #??# ## | | ??????????????????????# #??# # | | ??????????????????????# #??# ## ## | | ??????????????????????# #??# ######## | | ??????????????????????# #??# #??????? | | ??????????????????????# #### ######## | | ??????????????????????# ## ## | | ??????????????????????# + ## | | ??????????????????????# ## ## | | ??????????????????????# #### ## " | | ???????########???????# #??# """ | | ???????# # #??###### #??#### " | | ???????# #??# + #?????# | | ???????# #??# #### #?????# " | | ???????#### #?##+##?# #?????# "" | | ??????????#!###?# #?# [#?????## #### | | ??????????#=##### ###%!########+#### | | ??????????#%=*! %; | | ??????????#!%@ ^^%[ + | | ??????????##l! ######### ############# | | ??????????# ! #?????## #???????????? | | ??????????#######?????#" #???????????? | | ??????????????????????#T #???????????? | | ??????????????????????#""#???????????? | | ??????????????????????####???????????? | | ?????????????????????????????????????? | | ?????????????????????????????????????? | | ?????????????????????????????????????? | | ?????????????????????????????????????? | | ?????????????????????????????????????? | | | | | | | | | | | | | | | | | | | | | | | | | | | +----------------------------------------------------+ Best States ------------- Heat Dissipation 83 Energy Generation 19 Energy Capacity 310 Matter Stores 300 Matter Capacity 300 Sight Range 16 Terrain Scan Density 10 Base Temperature (-) 100 Weapon Cycling 15 Evasion (%) 44 Targeting Accuracy 12 Authchip Count 1 Item Schematics ----------------- Wheel | -9/Materials | Scanalyzed Arm. Wheel | -9/Materials | Scanalyzed Lgt. Armor Plating | -9/Materials | Scanalyzed Hcp. Storage Unit | -9/Materials | Hacked Exp. Heat Sink | -8/Materials | Scanalyzed System Purifier | -8/Materials | Scanalyzed Cryofiber Web | -8/Materials | Scanalyzed Assault Rifle | -8/Materials | Hacked Recoil Stabilizer | -8/Materials | Hacked Mak. Salvage Targeting Computer | -8/Materials | Scanalyzed Graphene Brace | -8/Materials | Scanalyzed Hvy. Deuterium Engine | -8/Materials | Scanalyzed Robot Schematics ------------------ M-13 Machinist | -10/Materials | Hacked Fabricated ------------ Nothing Repaired ---------- Imp. Assault Rifle | 46% | -9/Materials Imp. Assault Rifle | 45% | -9/Materials Hvy. Deuterium Engine | 40% | -8/Materials Hvy. Assault Rifle | 67% | -8/Materials Alien Tech Used ----------------- None Achievements -------------- None Challenges ------------ None Game ------ Seed GlidesysMassTrident Manual? 0 Play Time 01:31:20 Cumulative 1113.6 hours Start 2025.07.24 @ 22:03:35 End 2025.07.24 @ 23:38:45 Sessions 1 Manual Loads 0 Difficulty Rogue Special Mode None Game No. 555 Rogue 555 Adventurer 0 Explorer 0 Win Type - Total 23 Types 10/4/3/0/1/1/2/2/0/0 Lore% 90 Gallery% 89 Achievement% 83 Wizard Run 0 Options --------- Layout 0 ASCII 0 Keyboard 0 Movement Numpad Keybinds 0 Fullscreen 2 Font 24/Smallcaps Map View 76x50 Zoom Use 0% Tactical HUD 1 Map Filters NONE Filters SHIFT_HUE(315) Steam 1 RUN: 4a070667-4a63-43e6-8143-d73d5c91a2eb